Cogmind - Beta 16 @@@ ROGUE MODE // 2025.10.26 @ 00:27:26 Player: FloorSandwich Result: Smashed by cave-in Performance ------------- Evolutions (1) 500 Regions Visited (3) 600 Robots Destroyed (36) 180 Value Destroyed (563) 563 Prototype IDs (0) 0 Alien Tech Used (0) 0 Bonus (0) 0 TOTAL SCORE: 1843 Bonus ------- None Cogmind --------- Core Integrity 0/400 Matter 300/300 Energy 98/100 System Corruption 6% Temperature Cool (1) Movement Treading (160) Location -9/Mines Parts ------- > --- POWER (1) -------- (None) > --- PROPULSION (2) --- Light Treads > --- UTILITY (4) ------ Terrain Scanner Terrain Scan Processor Light Armor Plating > --- WEAPON (2) ------- Particle Gun Heavy Hammer > --- INVENTORY (5) ---- Visual Processing Unit ECM Suite Tractor Beam Particle Gun Heavy Hammer Peak State ------------ > --- POWER ------------ Light Ion Engine > --- PROPULSION ------- Aluminum Leg Aluminum Leg > --- UTILITY ---------- Small Storage Unit Improved Terrain Scanner Terrain Scan Processor ECM Suite > --- WEAPON ----------- Heavy Hammer Heavy Hammer > --- INVENTORY -------- Light Nuclear Core Aluminum Leg Aluminum Leg Tractor Beam Medium Laser [Rating: 14] Favorites ----------- Power Light Ion Engine Engine Light Ion Engine Power Core Light Nuclear Core Propulsion Aluminum Leg Treads Light Treads Leg Aluminum Leg Utility Small Storage Unit Device Improved Terrain Scanner Storage Small Storage Unit Processor Terrain Scan Processor Protection Light Armor Plating Weapon Particle Gun Energy Gun Particle Gun Ballistic Gun Light Assault Rifle Impact Weapon Heavy Hammer Build | -11 -10 -9 -9 ------- Run | Yrd Mat Mat Min Slots Evolved 2 | . . 2 . Power . | . . . . Propulsion . | . . . . Utility 2 | . . 2 . Weapon . | . . . . Parts Attached 28 | 8 2 18 . Power 6 | 1 . 5 . Engine 5 | 1 . 4 . Core 1 | . . 1 . Reactor . | . . . . Propulsion 7 | 2 2 3 . Treads 1 | . . 1 . Leg 6 | 2 2 2 . Wheel . | . . . . Hover . | . . . . Flight . | . . . . Utility 7 | 3 . 4 . Device 4 | 2 . 2 . Storage 1 | 1 . . . Processor 1 | . . 1 . Hackware . | . . . . Protection 1 | . . 1 . Artifact . | . . . . Weapon 8 | 2 . 6 . Energy Gun 3 | . . 3 . Energy Cannon . | . . . . Ballistic Gun 3 | 2 . 1 . Ballistic Cannon . | . . . . Launcher . | . . . . Special Weapon . | . . . . Impact Weapon 2 | . . 2 . Slashing Weapon . | . . . . Piercing Weapon . | . . . . Special Melee Weapon . | . . . . Unidentified Prototypes . | . . . . Parts Lost 15 | . 1 12 2 Power 4 | . . 3 1 Propulsion 5 | . 1 4 . Utility 2 | . . 1 1 Weapon 4 | . . 4 . Highest Loss Streak 5 | . 1 5 2 To Critical Strikes . | . . . . Average Backups 4 | 2 4 5 5 Power . | . 1 . . Propulsion . | . . 1 . Utility 1 | . 1 1 3 Weapon 1 | . 1 1 2 Tool/Special . | . . . . Unused Backups 2 | . . 1 1 Power . | . . . . Propulsion 1 | . . 1 . Utility 1 | . . . 1 Weapon . | . . . . Tool/Special . | . . . . Average Slot Usage (%) 90 | . 99 84 88 Engine 11 | . 14 9 11 Treads 3 | . . . 11 Leg 13 | . 27 10 . Device 14 | . 14 18 11 Storage 12 | . 14 11 11 Processor 7 | . . 10 11 Protection 3 | . . 1 11 Energy Gun 8 | . . 5 20 Ballistic Gun 13 | . 28 9 . Impact Weapon 2 | . . 6 1 Peak Build Rating 14 | 9 9 14 11 Average Rating 10 | 5 8 11 10 On Entrance 7 | . 9 9 11 Avg Prop Armor Cover (%) . | . . . . Naked Turns . | . . . . Heaviest Build 18 | 14 14 18 18 Greatest Support 20 | 20 20 20 20 Greatest Overweight (x) 5 | . 1 5 . Average Overweight (x) . | . . 1 . Largest Inventory Capacity 8 | 8 8 8 8 Average Capacity 7 | 6 8 8 7 Most Carried 8 | 5 7 8 6 Average Carried 4 | 2 4 5 5 Final Capacity 8 | 5 8 8 5 Final Carried 7 | 3 7 5 5 Class Distribution -------------------- 96% | Mutant 3% | Scavenger-Mutant Dominant Class ---------------- Mutant | -10/Materials Mutant | -9/Materials Mutant | -9/Mines Resources | -11 -10 -9 -9 ----------- Run | Yrd Mat Mat Min Matter Collected 616 | 251 194 161 10 Remotely 131 | 131 . . . Salvage Created 1270 | 140 290 840 . Parts 50 | 12 11 27 . Haulers Intercepted 1 | . . 1 . Recyclers Shooed 4 | . 1 3 . Parts Field Recycled . | . . . . Retrieved Matter . | . . . . Parts Self-Destructed . | . . . . Prevented . | . . . . Parts Restored . | . . . . Kills | -11 -10 -9 -9 ------- Run | Yrd Mat Mat Min Combat Hostiles Destroyed 18 | . 7 11 . Melee 5 | . . 5 . Guns 8 | . 7 1 . Classes Destroyed 9 | 2 1 6 . Worker 6 | . . 6 . Builder 1 | . . 1 . Tunneler 4 | 3 . 1 . Hauler 1 | . . 1 . Recycler 5 | 1 . 4 . Mechanic 1 | . . 1 . Swarmer 8 | . . 8 . Grunt 7 | . 7 . . Sentry 3 | . . 3 . Best Kill Streak 5 | 2 4 5 . Combat Bots Only 4 | . 4 4 . Max Kills in Single Turn 1 | 1 1 1 . Gunslinging . | . . . . Exploded . | . . . . Melee 1 | . . 1 . Uniques/NPCs Destroyed . | . . . . Combat | -11 -10 -9 -9 -------- Run | Yrd Mat Mat Min Hostile Shots Fired 202 | . 53 149 . Missed 44 | . 13 31 . Hits 158 | . 40 118 . Projectile 158 | . 40 118 . Critical Strikes 5 | . 1 4 . Damage Taken 2081 | . 506 1176 399 Core 553 | . 114 295 144 Absorbed by Shields . | . . . . Core Remaining (%) 77 | 100 54 . . Volleys Fired 58 | 8 28 22 . Largest 2 | 2 2 2 . Hottest 130 | 40 40 130 . Shots Fired 113 | 16 56 41 . Gun 113 | 16 56 41 . Cannon . | . . . . Launcher . | . . . . Special . | . . . . Kinetic 79 | 16 56 7 . Thermal 34 | . . 34 . Explosive . | . . . . Electromagnetic . | . . . . Robot Hit Streak 12 | 1 12 7 . Robot Miss Streak 4 | 4 2 3 . Penetration Max . | . . . . Secondary Targets . | . . . . Shots Hit Robots 99 | 5 39 55 . Core Hits 35 | 4 16 15 . Critical Kills 3 | . 1 2 . Critical Parts Destroyed 6 | . 1 5 . Critical Strikes 11 | . 2 9 . Burn 1 | . . 1 . Destroy 2 | . 2 . . Smash 8 | . . 8 . Melee Attacks 62 | . . 46 16 Impact 62 | . . 46 16 Slashing . | . . . . Piercing . | . . . . Sneak Attacks 8 | . . 8 . Combat Hostiles . | . . . . Follow-up Attacks . | . . . . Damage Inflicted 2364 | 74 410 1880 . Guns 856 | 74 410 372 . Cannons . | . . . . Explosions . | . . . . Melee 1505 | . . 1505 . Ramming 3 | . . 3 . Kinetic 512 | 74 410 28 . Thermal 344 | . . 344 . Explosive . | . . . . Electromagnetic . | . . . . Impact 1505 | . . 1505 . Slashing . | . . . . Piercing . | . . . . Highest Corruption 6 | . . . 6 Average Corruption 6 | . . . 6 Corruption Purged . | . . . . Corruption Blocked . | . . . . Overload Shots . | . . . . Overflow Damage 600 | . . 600 . Projectiles . | . . . . Explosions . | . . . . Melee 600 | . . 600 . Knockbacks 4 | . . 4 . Impact 4 | . . 4 . Kinetic . | . . . . Secondary . | . . . . Self-Inflicted Damage . | . . . . Shots . | . . . . Rammed . | . . . . Targets Rammed 3 | . 1 2 . Kicked 3 | . 1 2 . Crushed . | . . . . Highest Temperature 345 | . 37 345 . Average Temperature 78 | . 11 98 . Received Heat Transfer 534 | . 300 234 . Siege Activations . | . . . . Martial Activations . | . . . . Shielding Activations . | . . . . Robots Disrupted . | . . . . Combat Hostiles . | . . . . Robots Corrupted 9 | . . 9 . Combat Hostiles 5 | . . 5 . Parts Fried 14 | . . 14 . Impact Corruptions 25 | . . 25 . Robots Melted . | . . . . Combat Hostiles . | . . . . Parts Melted 2 | . . 2 . Heat Transferred 888 | . . 888 . Parts Sabotaged . | . . . . Parts Stolen . | . . . . Parts Stripped . | . . . . Power Chain Reactions . | . . . . Alert | -11 -10 -9 -9 ------- Run | Yrd Mat Mat Min Maximum Alert Level . | . . . . Low Security (%) 100 | 100 100 100 100 Level 1 . | . . . . Level 2 . | . . . . Level 3 . | . . . . Level 4 . | . . . . Level 5 . | . . . . High Security . | . . . . Max Security . | . . . . Peak Influence 111 | 5 111 83 16 Initial 39 | . . 39 16 Average 15 | 1 16 28 . Influence Increases 598 | 20 231 344 3 Destroy 0b10 Robot/C 360 | . 140 220 . Destroy 0b10 Robot/NC 90 | 20 . 70 . Destroy Leader 92 | . 40 52 . Successful Hack 8 | . 6 2 . Destroy Structure 3 | . . . 3 Lose Combat Pursuer 45 | . 45 . . Influence Decreases 598 | 20 138 393 47 Entered New Map 82 | . . 54 28 Time Decay 456 | 20 138 279 19 Lost Part 60 | . . 60 . Squads Dispatched 3 | . 2 1 . Investigation 1 | . 1 . . Extermination . | . . . . Reinforcement 2 | . 1 1 . Assault . | . . . . Garrison . | . . . . Intercept . | . . . . Searches Triggered . | . . . . Construction Impeded . | . . . . Haulers Reinforced . | . . . . Active Scanning Responses . | . . . . Cargo Convoy Interrupts . | . . . . Stealth | -11 -10 -9 -9 --------- Run | Yrd Mat Mat Min Distress Signals 3 | . 1 2 . Communications Jammed . | . . . . Distress Signals . | . . . . Times Spotted 44 | . 19 25 . Peak Tracking Total 4 | . 4 4 . Tactical Retreats 4 | . 2 2 . ECM-based Alert Blocks 2 | . . 2 . Traps | -11 -10 -9 -9 ------- Run | Yrd Mat Mat Min Traps Triggered . | . . . . Indirectly . | . . . . Trap Hack Attempts . | . . . . Triggered . | . . . . Disarmed . | . . . . Reprogrammed . | . . . . Reused . | . . . . Traps Extracted . | . . . . Installed . | . . . . Triggered . | . . . . Machines | -11 -10 -9 -9 ---------- Run | Yrd Mat Mat Min Machines Disabled . | . . . . Max in Single Turn . | . . . . Machines Repaired . | . . . . Machines Dismantled . | . . . . Machines Sabotaged . | . . . . Overloaded Fab Kills . | . . . . Hacking | -11 -10 -9 -9 --------- Run | Yrd Mat Mat Min Machines Accessed 3 | . 1 2 . Terminals 1 | . 1 . . Fabricators . | . . . . Repair Stations . | . . . . Recycling Units . | . . . . Scanalyzers 2 | . . 2 . Garrison Access . | . . . . Total Hacks 11 | . 5 6 . Successful 6 | . 2 4 . Failed 4 | . 3 1 . Catastrophic . | . . . . Database Lockouts 1 | . . 1 . Manual 2 | . 2 . . Terminals 5 | . 5 . . Fabricators . | . . . . Repair Stations . | . . . . Recycling Units . | . . . . Scanalyzers 6 | . . 6 . Garrison Access . | . . . . Terminal Hacks 2 | . 2 . . Reinforcement Status 1 | . 1 . . Zone Layout 1 | . 1 . . Fabricator Hacks . | . . . . Repair Station Hacks . | . . . . Recycling Unit Hacks . | . . . . Scanalyzer 4 | . . 4 . Insert Component 1 | . . 1 . Retrieve Study 3 | . . 3 . Garrison Access Hacks . | . . . . Unauthorized Hacks . | . . . . Terminals . | . . . . Fabricators . | . . . . Repair Stations . | . . . . Recycling Units . | . . . . Scanalyzers . | . . . . Garrison Access . | . . . . Data Cores Recovered . | . . . . Used . | . . . . Hacking Detections 3 | . 1 2 . Full Trace Events 3 | . 1 2 . Feedback Events . | . . . . Feedback Blocked . | . . . . Robot Schematics Acquired . | . . . . Robots Built . | . . . . Authchips . | . . . . Time . | . . . . Total Robot Build Rating . | . . . . Part Schematics Acquired . | . . . . Parts Built . | . . . . Authchips . | . . . . Time . | . . . . Total Part Build Rating . | . . . . Part Studies Acquired 3 | . . 3 . Parts Repaired . | . . . . Time . | . . . . Parts Recycled . | . . . . Recycled Matter . | . . . . Retrieved Matter . | . . . . Retrieved Components . | . . . . Parts Scanalyzed . | . . . . Part Schematics Acquired . | . . . . Parts Damaged . | . . . . Bothacking | -11 -10 -9 -9 ------------ Run | Yrd Mat Mat Min Used RIF Installer . | . . . . Robots Hacked . | . . . . Non-combat . | . . . . Combat . | . . . . Robot Hacks Applied . | . . . . Relay Couplers Released . | . . . . Fabnet Peak Effective % . | . . . . Robots Rewired . | . . . . Allies Hacked . | . . . . Hacks Repelled . | . . . . Allies | -11 -10 -9 -9 -------- Run | Yrd Mat Mat Min Total Allies . | . . . . Largest Group . | . . . . Highest-Rated Group . | . . . . Highest-Rated Ally . | . . . . Total Orders . | . . . . Ally Attacks . | . . . . Total Damage . | . . . . Kills . | . . . . Allies Corrupted . | . . . . Allies Melted . | . . . . Intel | -11 -10 -9 -9 ------- Run | Yrd Mat Mat Min Active Infowar (turns) 2855 | 13 997 1024 821 Terrain 2639 | 13 997 808 821 ECM 847 | . . 847 . Robot Analysis Total . | . . . . Derelict Logs Recovered 2 | . . . 2 Drone Launches . | . . . . Drone Recoveries . | . . . . Exploration | -11 -10 -9 -9 ------------- Run | Yrd Mat Mat Min Turns Passed 2957 | 112 997 1027 821 Spaces Moved 800 | 73 319 324 84 Core 107 | 28 . 79 . Treads 119 | . . 35 84 Legs 574 | 45 319 210 . Wheels . | . . . . Hover . | . . . . Flight . | . . . . Fastest Speed 50 | 50 120 105 160 Average Speed 144 | 93 121 174 160 Slowest Speed 300 | 120 190 300 160 Overloaded Moves . | . . . . Propulsion Burnouts . | . . . . Robots Hopped . | . . . . Potential Cave-ins 13 | . . . 13 Cave-ins Triggered 2 | . . . 2 Exploration Rate (%) 20 | 3 32 25 22 Regions Visited 3 Branch Regions 1 Pre-discovered Areas 1 | . . . 1 Known Exits Taken . | . . . . Unknown Exits Taken 3 | 1 1 1 . Scrap Searched . | . . . . Spaces Dug 16 | . . . 16 Terrain Destroyed 16 | . . . 16 Melee 16 | . . . 16 Projectile . | . . . . AOE . | . . . . Terrain Rammed . | . . . . Walls Destroyed . | . . . . Machines Disabled . | . . . . Actions | -11 -10 -9 -9 --------- Run | Yrd Mat Mat Min Total 2390 | 101 876 670 743 Wait 1404 | 4 519 239 642 Move 796 | 72 318 323 83 Hop . | . . . . Pick Up 29 | 9 6 14 . Fast Attach 1 | 1 . . . Attach 25 | 6 1 17 1 Detach 5 | . . 4 1 Swap 5 | 1 2 2 . Drop 4 | . 1 3 . Fire 58 | 8 28 22 . Melee 60 | . . 44 16 Ram . | . . . . Kick 3 | . 1 2 . Crush . | . . . . Escape Stasis . | . . . . Rewire . | . . . . Trap . | . . . . Miscellaneous . | . . . . Route ------- -11/Scrapyard -10/Materials (discovered 2 exits: *Mat / [*Sub]) -9/Materials -9/Mines History --------- Turn | Location | Event 6 | -11/Scrapyard | Discovered new exit (range 16) 113 | -11/Scrapyard | Entered Materials 305 | -10/Materials | Build established: Mutant 800 | -10/Materials | Discovered new exit (range 10) 1074 | -10/Materials | Discovered new exit (range 9) 1110 | -10/Materials | Entered another Materials area 1110 | -9/Materials | Evolved 2 slots: Utility x2 1389 | -9/Materials | Lost 3 parts (1n2w) 1684 | -9/Materials | Central database locked down 1810 | -9/Materials | Lost 5 parts (1p2n1u1w) 1818 | -9/Materials | Core integrity fell below 50% 1893 | -9/Materials | Discovered new exit (range 16) 2137 | -9/Materials | Entered Mines 2158 | -9/Mines | Learned 2 Materials zone layouts 2548 | -9/Mines | Learned location of Recycling (-8) 2952 | -9/Mines | Crushed by falling debris 2952 | -9/Mines | Core integrity fell below 20% 2958 | -9/Mines | Crushed by falling debris 2958 | -9/Mines | Smashed by cave-in Last Messages --------------- Something is scanning the area. Acquired derelict log, extracted data. Data stored: Materials zone layouts (x2). K-01 Serf collects debris. Acquired derelict log, extracted data. World map updated: -8/Recycling. K-01 Serf cleans the Core Extractor. K-01 Serf collects debris. K-01 Serf cleans the Core Extractor. K-01 Serf collects debris. K-01 Serf cleans the Core Extractor. Extracted 10 matter. The unstable cave ceiling collapses. Crushed by falling debris. Lgt. Ion Engine destroyed. System corrupted by crushing effect (+3). Sml. Storage Unit destroyed. System corrupted by crushing effect (+3). The unstable cave ceiling collapses. Crushed by falling debris. Map ----- +----------------------------------------------------+ | ## ?#?####??????????????????????????????????????? | | ### ?#######????????????????????????????????????? | | ### #?#####???????????????????????????????????? | | ###?? ########??????????????????????????????????? | | ?# ########?????????????????????????????????? | | # #####????????????????????????????????? | | # ? ####????????????????????????????????? | | ?# ## #####???????????????????????????????? | | ####### #######??????????????????????????????? | | ####### #######???????????????????????????????? | | ####### ########????? t???????????????????????? | | ####### ########???? ???????????????????????? | | ####### ########??? ???????????????????????? | | # # ########?# ???#???????????????????? | | ## ####### ?????????##????????????? | | " """ ### ####### #?#????? ????????????? | | " """ # ##### ####### ?#????? ???????????? | | " """ # ################ #????? #???????????? | | # ############### k#?#? #????????????? | | " """ # ############### #?#? #????????????? | | " """ # ############### ##?# ?????????????? | | " """ # ############# ## ??????????????? | | #### ############# ? ?????????????? | | " """ #### ############# r ? ?? ?????????????? | | " """ #### ############## ? ??? ??????????????? | | " """ #### ######?####?##@## ?? ?????????????????? | | #### ############## #???#?#?#? ????????????? | | " """ # ## # ##?#?#???#?? ???????????? | | " """ # !! ################??#???# ????????????? | | " """ # ! #########?##????????????#???????????? | | # !! #############?#?##??????#???????????? | | " !! ########?##?##??##?#????????????????? | | ####### #######??##?###?#????#??#???????????? | | ?###### #####?#??####?#?????#??????????????? | | #?##### ###?##########???????#?????????????? | | ????## ####??##???#???#????#??????????????? | | ??### ###?#??#?##??#??????????????????????? | | ?### #########??#?##???????#?#??????????????? | | ???# ###?#?#????####?##??????????????????????? | | ?#?## ######?#?#?##?#??#???#????????????????????? | | ??#?####?#####??#???#?###????????????????????????? | | ?#?#????????#????????????????????????????????????? | | ???????#?##??????????????????????????????????????? | | | | | | | | | | | | | | | +----------------------------------------------------+ Best States ------------- Heat Dissipation 28 Energy Generation 14 Energy Capacity 250 Matter Stores 300 Matter Capacity 300 Sight Range 16 Terrain Scan Range 16 Terrain Scan Density 85 ECM Strength 1 Armor Coverage 150 Evasion (%) 55 Recoil Reduction 1 Item Schematics ----------------- None Robot Schematics ------------------ None Fabricated ------------ Nothing Repaired ---------- Nothing Studied --------- Aluminum Leg | -9/Materials | Hacked Hvy. Hammer | -9/Materials | Hacked Ion Engine | -9/Materials | Hacked Alien Tech Used ----------------- None Achievements -------------- Use The Force Challenges ------------ None Game ------ Seed GodBladeScrapsphere Manual? 0 Play Time 00:14:46 Cumulative 15.3 hours Start 2025.10.26 @ 00:14:23 End 2025.10.26 @ 00:27:26 Sessions 1 Manual Loads 0 Difficulty Rogue Special Mode None Game No. 54 Rogue 54 Adventurer 0 Explorer 0 Win Type - Total 0 Types 0/0/0/0/0/0/0/0/0/0 Lore% 7 Gallery% 15 Achievement% 13 Wizard Run 0 Options --------- Layout 1 ASCII 0 Keyboard 0 Movement Arrows Keybinds 0 Fullscreen 1 Font 24/Smallcaps Map View 50x35 Zoom Use 0% Tactical HUD 0 Map Filters NONE Filters NONE Steam 1 RUN: 72929289-017f-41d5-94f3-7704b8e56702